Cogmind - Beta 12 @@@ ROGUE MODE // 2023.09.03 @ 21:20:37 Player: Senator Honkstrong Result: Core destroyed Performance ------------- Evolutions (3) 1500 Regions Visited (11) 2200 Robots Destroyed (195) 975 Value Destroyed (6410) 6410 Prototype IDs (50) 1000 Alien Tech Used (0) 0 Bonus (2909) 2909 TOTAL SCORE: 14994 Bonus ------- High Alert Combat Kills 399 Follower Combat Kills 1516 Entered Garrisons 200 Used RIF Installer 500 Entered DSFs 500 Aligned with FarCom 300 Friendly Fire -506 Cogmind --------- Core Integrity 0/700 Matter 176/300 Energy 290/290 System Corruption 1% Temperature Critical (964) Movement Treading (305) Ox2 Location -7/DSF Parts ------- > --- POWER (1) -------- Reinforced Deuterium Engine > --- PROPULSION (3) --- Biometal Medium Treads Biometal Medium Treads Advanced Myomer Leg > --- UTILITY (6) ------ High-capacity Storage Unit Experimental Targeting Computer Improved Light Armor Plating Relay Coupler [Swarmer] (28) Relay Coupler [Grunt] (18) Relay Coupler [Specialist] (12) > --- WEAPON (3) ------- KE Penetrator 8R-AWN's Boregun 8R-AWN's Boregun > --- INVENTORY (20) --- Improved Deuterium Engine Advanced Myomer Leg Advanced Cooling System High-capacity Matter Pod (200) Experimental Sensor Array Recoil Nullifier Advanced Weapon Cycler Improved Light Armor Plating Authchip [R/Combat] Authchip [R/Combat] Authchip [R/Combat] Authchip [R/Combat] Relay Coupler [Cutter] (31) Relay Coupler [Sentry] (26) Relay Coupler [Demolisher] (22) Relay Coupler [Hunter] (17) KE Penetrator Heavy Rocket Launcher Improved Remote Datajack Longsword +1 Peak State ------------ > --- POWER ------------ Reinforced Deuterium Engine > --- PROPULSION ------- Biometal Medium Treads Biometal Medium Treads Advanced Myomer Leg > --- UTILITY ---------- High-capacity Storage Unit Experimental Targeting Computer Improved Light Armor Plating Relay Coupler [Swarmer] Relay Coupler [Grunt] Relay Coupler [Specialist] > --- WEAPON ----------- KE Penetrator 8R-AWN's Boregun 8R-AWN's Boregun > --- INVENTORY -------- Improved Deuterium Engine Improved Deuterium Engine Advanced Myomer Leg Advanced Cooling System High-capacity Matter Pod Experimental Sensor Array Recoil Nullifier Advanced Weapon Cycler Improved Light Armor Plating Authchip [R/Combat] Authchip [R/Combat] Authchip [R/Combat] Relay Coupler [Cutter] Relay Coupler [Sentry] Relay Coupler [Demolisher] Relay Coupler [Hunter] KE Penetrator Heavy Rocket Launcher Improved Remote Datajack Longsword +1 [Rating: 85] Favorites ----------- Power Light Nuclear Core Engine Ion Engine Power Core Light Nuclear Core Reactor Hybrid Antimatter Reactor Propulsion Advanced Myomer Leg Treads Biometal Medium Treads Leg Advanced Myomer Leg Utility Hacking Suite Device Advanced Weapon Cycler Storage High-capacity Storage Unit Processor Core Analyzer Hackware Hacking Suite Protection Medium Armor Plating Weapon Improved Assault Rifle Energy Gun Precision Beam Rifle Ballistic Gun Improved Assault Rifle Launcher Heavy Rocket Launcher Special Weapon Improved Remote Datajack Slashing Weapon Longsword +1 Build | -11 -10 -10 -9 -9 -9 -8 -8 -7 -7 -7 -7 ------- Run | Jun Mat Min Mat Min Exi Min Mat Fac Gar Fac DSF Slots Evolved 6 | . . . 2 . . . 2 2 . . . Power . | . . . . . . . . . . . . Propulsion 1 | . . . . . . . 1 . . . . Utility 4 | . . . 1 . . . 1 2 . . . Weapon 1 | . . . 1 . . . . . . . . Parts Attached 180 | 7 13 . 19 6 20 8 33 35 34 . 5 Power 16 | 1 . . 1 2 2 1 3 2 4 . . Engine 9 | 1 . . . 2 1 . 2 . 3 . . Core 5 | . . . 1 . 1 . . 2 1 . . Reactor 2 | . . . . . . 1 1 . . . . Propulsion 30 | 2 5 . 2 . 4 . 9 6 2 . . Treads 15 | . 2 . 2 . 2 . 4 3 2 . . Leg 15 | 2 3 . . . 2 . 5 3 . . . Wheel . | . . . . . . . . . . . . Hover . | . . . . . . . . . . . . Flight . | . . . . . . . . . . . . Utility 60 | 2 3 . 6 2 9 2 4 19 9 . 4 Device 17 | 1 . . . . 6 1 2 5 2 . . Storage 4 | 1 1 . . . 1 . . 1 . . . Processor 4 | . 1 . 1 1 . . . . . . 1 Hackware 12 | . . . 1 . . . 2 4 3 . 2 Protection 23 | . 1 . 4 1 2 1 . 9 4 . 1 Artifact . | . . . . . . . . . . . . Weapon 74 | 2 5 . 10 2 5 5 17 8 19 . 1 Energy Gun 4 | . 1 . 1 . . . 2 . . . . Energy Cannon . | . . . . . . . . . . . . Ballistic Gun 55 | 2 4 . 7 1 4 4 13 8 11 . 1 Ballistic Cannon . | . . . . . . . . . . . . Launcher 7 | . . . 2 . . . 1 . 4 . . Special Weapon 5 | . . . . 1 1 . . . 3 . . Impact Weapon . | . . . . . . . . . . . . Slashing Weapon 3 | . . . . . . 1 1 . 1 . . Piercing Weapon . | . . . . . . . . . . . . Special Melee Weapon . | . . . . . . . . . . . . Unidentified Prototypes 11 | . 1 . . . 6 1 2 1 . . . Parts Lost 42 | . 2 . 2 2 11 4 4 6 11 . . Power 9 | . . . . 1 2 1 1 2 2 . . Propulsion 8 | . 2 . . . 2 . 1 1 2 . . Utility 10 | . . . 1 1 3 . . 2 3 . . Weapon 15 | . . . 1 . 4 3 2 1 4 . . Highest Loss Streak 11 | . 1 . 1 1 11 2 1 2 3 . . To Critical Strikes 5 | . . . . . 5 . . . . . . Average Slot Usage (%) 98 | . 99 100 98 99 98 97 97 98 99 100 100 Engine 4 | . 14 14 . . 8 . 3 2 6 7 7 Core 2 | . . . 10 10 1 2 . 3 . . . Reactor 1 | . . . . . . 8 5 . . . . Treads 13 | . 3 28 21 22 19 . 7 11 9 15 15 Leg 10 | . 24 . . . 2 22 18 10 12 7 7 Device 1 | . . . . . . 2 2 3 3 . . Storage 9 | . 14 14 11 11 11 11 9 7 7 7 7 Processor 5 | . 10 . 10 11 11 11 8 . . . 6 Hackware 12 | . . . 1 . . . 14 28 26 30 22 Protection 6 | . 2 14 9 11 9 8 1 5 6 7 8 Energy Gun 1 | . 8 . . . . . 6 . . . . Ballistic Gun 23 | . 19 28 31 32 32 22 19 22 16 15 19 Naked Turns . | . . . . . . . . . . . . Heaviest Build 76 | 13 38 37 48 41 73 73 63 63 73 73 76 Greatest Support 105 | 20 46 46 46 46 72 72 78 105 90 70 70 Greatest Overweight (x) 3 | 3 1 . 1 . 2 1 1 2 2 1 2 Average Overweight (x) . | . . . . . . . . . . 1 1 Largest Inventory Capacity 20 | 8 15 15 15 15 20 20 20 20 20 20 20 Average Capacity 17 | 7 11 15 15 15 15 20 20 20 20 20 20 Most Carried 20 | 4 15 15 15 15 20 20 20 20 20 20 20 Average Carried 16 | 3 9 14 14 14 12 19 19 19 19 20 18 Final Capacity 20 | 8 15 15 15 15 20 20 20 20 20 20 20 Final Carried 20 | 4 15 15 15 14 20 20 19 20 20 20 20 Class Distribution -------------------- 24% | Gunner 17% | Scavenger-Gunner 15% | Hacker-Tank 15% | Mutant 8% | Scavenger-Mutant 6% | Commander-Mutant 5% | Hacker-Gunner 3% | Bothacker-Mutant Dominant Class ---------------- Mutant | -10/Materials Mutant | -10/Mines Gunner | -9/Materials Gunner | -9/Mines Gunner | -9/Exiles Scavenger-Mutant | -8/Mines Scavenger-Gunner | -8/Materials Hacker-Tank | -7/Factory Commander-Mutant | -7/Garrison Commander-Mutant | -7/Factory Bothacker-Mutant | -7/DSF Resources | -11 -10 -10 -9 -9 -9 -8 -8 -7 -7 -7 -7 ----------- Run | Jun Mat Min Mat Min Exi Min Mat Fac Gar Fac DSF Matter Collected 6747 | 368 270 58 728 236 442 244 1093 1707 1442 . 159 Remotely . | . . . . . . . . . . . . Salvage Created 7622 | 278 495 51 1261 309 201 169 1893 1616 1249 54 46 Parts 450 | 37 37 4 81 18 11 10 113 79 57 3 . Haulers Intercepted 15 | . 2 . 5 . . . 6 2 . . . Recyclers Shooed 5 | 1 1 . . . . 1 2 . . . . Parts Field Recycled . | . . . . . . . . . . . . Retrieved Matter . | . . . . . . . . . . . . Parts Self-Destructed . | . . . . . . . . . . . . Prevented . | . . . . . . . . . . . . Kills | -11 -10 -10 -9 -9 -9 -8 -8 -7 -7 -7 -7 ------- Run | Jun Mat Min Mat Min Exi Min Mat Fac Gar Fac DSF Combat Hostiles Destroyed 136 | . 13 3 24 11 7 2 25 24 27 . . Melee 5 | . . . . . . 2 2 . 1 . . Guns 115 | . 13 3 18 11 7 . 23 23 17 . . AOE 16 | . . . 6 . . . . 1 9 . . Classes Destroyed 17 | 3 4 . 2 . 1 1 1 2 3 . . Worker 9 | 4 . . 3 . . . 1 1 . . . Builder 4 | . . . 1 . . . 1 2 . . . Tunneler 10 | 9 . . . 1 . . . . . . . Hauler 15 | . 2 . 5 . . . 6 2 . . . Recycler 6 | 1 . . 1 . . . 3 1 . . . Operator 3 | . . . . . . . 2 1 . . . Watcher 16 | . 3 . 4 . . . 3 6 . . . Swarmer 28 | . 6 3 9 5 . . 4 1 . . . Grunt 57 | . 7 . 7 5 . . 9 15 14 . . Brawler 5 | . . . . . . . . 1 4 . . Duelist 3 | . . . . . . . . . 3 . . Protector 1 | . . . . . . . . . 1 . . Sentry 22 | . . . 8 . . . 10 1 3 . . Demolisher 1 | . . . . . . . . . 1 . . Hunter 6 | . . . . . . 1 2 1 1 1 . Programmer 6 | . . . . . . . . 6 . . . Assembled 6 | . . . . . 6 . . . . . . Best Kill Streak 9 | 4 3 3 5 4 6 1 9 4 8 . . Combat Bots Only 8 | . 3 3 4 4 6 1 8 3 8 . . Max Kills in Single Turn 3 | 1 1 1 3 2 1 1 2 2 3 1 . Gunslinging 1 | . . . . 1 . . 1 . . . . Exploded 3 | . . . 2 . . . . 1 3 . . Melee 1 | . . . . . . 1 1 . 1 . . Uniques/NPCs Destroyed 3 | . . . . 1 1 1 . . . . . YI-UF0 (-9/Mines) 8R-AWN (-9/Exiles) CL-ANK (-8/Mines) Combat | -11 -10 -10 -9 -9 -9 -8 -8 -7 -7 -7 -7 -------- Run | Jun Mat Min Mat Min Exi Min Mat Fac Gar Fac DSF Damage Taken 9274 | . 491 58 602 509 1323 847 1239 2078 2047 . 80 Core 1322 | . 57 6 71 33 170 98 136 323 358 . 70 Absorbed by Shields . | . . . . . . . . . . . . Redirected to Shielding 71 | . . . . . . 12 59 . . . . Regen/Repaired (Parts) 982 | . . . 150 . . . 664 168 . . . Core Remaining (%) 64 | 100 . 74 . . . 7 75 . . . . Volleys Fired 592 | 49 56 8 58 25 33 29 96 116 117 . 5 Largest 3 | 2 2 2 3 3 3 3 3 3 3 . 2 Hottest 117 | 40 88 43 79 69 69 76 117 81 95 . 63 Shots Fired 1474 | 98 110 16 169 69 98 70 257 348 232 1 6 Gun 1421 | 98 110 16 163 63 92 70 257 348 199 1 4 Cannon . | . . . . . . . . . . . . Launcher 19 | . . . 6 . . . . . 13 . . Special 34 | . . . . 6 6 . . . 20 . 2 Kinetic 1346 | 98 84 16 163 63 92 70 208 348 199 1 4 Thermal 87 | . 26 . . 6 6 . 49 . . . . Explosive 19 | . . . 6 . . . . . 13 . . Electromagnetic . | . . . . . . . . . . . . Robot Hit Streak 26 | 9 13 5 20 18 26 14 10 13 13 . 5 Robot Miss Streak 8 | 3 5 4 5 2 2 1 5 4 8 3 . Penetration Max 1 | . . . . . . . 1 1 . . . Secondary Targets 14 | . . 1 1 2 4 . 3 2 1 . . Max Gunslinging Chain 1 | . . 1 1 1 1 . 1 1 1 . . Shots Hit Robots 918 | 56 68 6 107 34 82 64 146 217 133 . 5 Core Hits 382 | 25 34 3 52 17 27 14 71 69 69 1 . Critical Kills 5 | . 1 . . . . . 2 . 2 . . Critical Parts Destroyed 18 | . 1 . 3 . . 1 2 4 5 . 2 Critical Strikes 29 | . 3 . 3 . . 1 5 4 11 . 2 Burn 2 | . 1 . . . . . 1 . . . . Destroy 24 | . 2 . 3 . . 1 4 4 8 . 2 Sever 3 | . . . . . . . . . 3 . . Melee Attacks 18 | . . . . . . 4 6 . 8 . . Impact . | . . . . . . . . . . . . Slashing 18 | . . . . . . 4 6 . 8 . . Piercing . | . . . . . . . . . . . . Sneak Attacks . | . . . . . . . . . . . . Combat Hostiles . | . . . . . . . . . . . . Follow-up Attacks . | . . . . . . . . . . . . Damage Inflicted 16725 | 449 900 85 2275 597 1238 816 2686 4229 3372 21 57 Guns 14048 | 449 863 85 1712 579 1204 614 2395 4176 1893 21 57 Cannons . | . . . . . . . . . . . . Explosions 1673 | . . . 540 . . . . 50 1083 . . Melee 873 | . . . . . . 192 285 . 396 . . Ramming 97 | . 37 . 23 18 . 10 6 3 . . . Kinetic 13190 | 449 547 85 1712 579 1204 614 1853 4176 1893 21 57 Thermal 1015 | . 316 . 73 . 34 . 542 50 . . . Explosive 1550 | . . . 467 . . . . . 1083 . . Electromagnetic . | . . . . . . . . . . . . Impact . | . . . . . . . . . . . . Slashing 873 | . . . . . . 192 285 . 396 . . Piercing . | . . . . . . . . . . . . Highest Corruption 4 | . . . . . . . 1 3 4 1 1 Average Corruption 1 | . . . . . . . 1 1 1 1 1 Corruption Purged 11 | . . . . . . . 1 7 3 . . Corruption Blocked . | . . . . . . . . . . . . Effects 34 | . . . . . . . . 2 29 1 2 Message Errors 8 | . . . . . . . . . 8 . . Matter Fused 10 | . . . . . . . . . 9 . 1 Heat Flow Errors 3 | . . . . . . . . . 3 . . Energy Discharges 3 | . . . . . . . . . 3 . . Data Loss (minor) 2 | . . . . . . . . . 2 . . Data Loss (major) 2 | . . . . . . . . . 1 . 1 Misfires 2 | . . . . . . . . 1 . 1 . Alerts 3 | . . . . . . . . . 3 . . Weapon Failures 1 | . . . . . . . . 1 . . . Overload Shots . | . . . . . . . . . . . . Overflow Damage 36 | . . . 15 . . . . . 21 . . Projectiles . | . . . . . . . . . . . . Explosions 36 | . . . 15 . . . . . 21 . . Melee . | . . . . . . . . . . . . Knockbacks . | . . . . . . . . . . . . Impact . | . . . . . . . . . . . . Kinetic . | . . . . . . . . . . . . Secondary . | . . . . . . . . . . . . Self-Inflicted Damage 185 | . . . 82 . . . . . 103 . . Shots 7 | . . . 2 . . . . . 5 . . Rammed 10 | . . . 4 6 . . . . . . . Targets Rammed 22 | . 8 . 4 6 . 1 2 1 . . . Kicked 12 | . 8 . . . . 1 2 1 . . . Crushed . | . . . . . . . . . . . . Highest Temperature 964 | . 282 . 108 42 47 420 324 199 244 . 964 Average Temperature 79 | . 70 . 24 16 16 237 99 31 75 . 348 Received Heat Transfer 2022 | . 201 . 141 42 120 . 423 432 663 . . Effects 13 | . . . . . . 1 1 . 2 . 9 Shutdowns 2 | . . . . . . 1 . . . . 1 Energy Bleed 2 | . . . . . . . 1 . . . 1 Interference 4 | . . . . . . . . . 2 . 2 Matter Decay 3 | . . . . . . . . . . . 3 Short Circuit 1 | . . . . . . . . . . . 1 Damage (core) 1 | . . . . . . . . . . . 1 Siege Activations . | . . . . . . . . . . . . Robots Corrupted . | . . . . . . . . . . . . Combat Hostiles . | . . . . . . . . . . . . Parts Fried . | . . . . . . . . . . . . Impact Corruptions . | . . . . . . . . . . . . Robots Melted . | . . . . . . . . . . . . Combat Hostiles . | . . . . . . . . . . . . Parts Melted 2 | . . . . . . . 2 . . . . Heat Transferred 2162 | . 814 . 50 . 27 . 1221 50 . . . Parts Sabotaged . | . . . . . . . . . . . . Parts Stolen . | . . . . . . . . . . . . Parts Stripped . | . . . . . . . . . . . . Power Chain Reactions . | . . . . . . . . . . . . Missiles Intercepted . | . . . . . . . . . . . . Alert | -11 -10 -10 -9 -9 -9 -8 -8 -7 -7 -7 -7 ------- Run | Jun Mat Min Mat Min Exi Min Mat Fac Gar Fac DSF Peak Influence 2091 | 70 189 85 430 233 . 30 737 533 2091 1097 957 Initial 1097 | . 45 27 . 129 . . . 323 153 1097 767 Average 344 | 34 70 41 276 78 . 4 363 262 916 1097 887 Maximum Alert Level 5 | . . . 2 1 . . 3 2 5 3 3 Low Security (%) 40 | 100 100 100 11 75 . 100 19 26 4 . . Level 1 35 | . . . 86 24 . . 45 60 18 . . Level 2 11 | . . . 2 . . . 28 12 19 . . Level 3 6 | . . . . . . . 5 . 20 100 100 Level 4 3 | . . . . . . . . . 20 . . Level 5 2 | . . . . . . . . . 16 . . High Security . | . . . . . . . . . . . . Max Security . | . . . . . . . . . . . . Sterilizations 1 | . . . . . . . . . . . 1 Squads Dispatched 30 | . 2 . . . . . 12 13 . 1 2 Investigation 9 | . 2 . . . . . 1 5 . 1 . Extermination 5 | . . . . . . . . 5 . . . Reinforcement 7 | . . . . . . . 3 2 . . 2 Assault 1 | . . . . . . . 1 . . . . Garrison 8 | . . . . . . . 7 1 . . . Intercept . | . . . . . . . . . . . . Searches Triggered . | . . . . . . . . . . . . Construction Impeded . | . . . . . . . . . . . . Haulers Reinforced . | . . . . . . . . . . . . Active Scanning Responses . | . . . . . . . . . . . . Cargo Convoy Interrupts . | . . . . . . . . . . . . Stealth | -11 -10 -10 -9 -9 -9 -8 -8 -7 -7 -7 -7 --------- Run | Jun Mat Min Mat Min Exi Min Mat Fac Gar Fac DSF Distress Signals 7 | . . . 2 . . . 4 1 . . . Communications Jammed . | . . . . . . . . . . . . Distress Signals . | . . . . . . . . . . . . Times Spotted 222 | . 24 6 31 14 8 2 43 44 43 . 7 Peak Tracking Total 9 | . 3 3 4 4 9 1 7 4 7 . 4 Tactical Retreats 3 | . . . . . . . 2 . 1 . . Traps | -11 -10 -10 -9 -9 -9 -8 -8 -7 -7 -7 -7 ------- Run | Jun Mat Min Mat Min Exi Min Mat Fac Gar Fac DSF Traps Triggered 17 | . 2 . . . . . 3 6 5 . 1 Indirectly . | . . . . . . . . . . . . Trap Hack Attempts . | . . . . . . . . . . . . Triggered . | . . . . . . . . . . . . Disarmed . | . . . . . . . . . . . . Reprogrammed . | . . . . . . . . . . . . Reused . | . . . . . . . . . . . . Traps Extracted . | . . . . . . . . . . . . Installed . | . . . . . . . . . . . . Triggered . | . . . . . . . . . . . . Machines | -11 -10 -10 -9 -9 -9 -8 -8 -7 -7 -7 -7 ---------- Run | Jun Mat Min Mat Min Exi Min Mat Fac Gar Fac DSF Machines Disabled 24 | . . 1 4 . 4 . 5 4 5 . 1 Max in Single Turn 3 | . . 1 1 . 1 . 2 3 1 . 1 Garrison Relay 6 | . . . . . . . . . 6 . . Machines Repaired . | . . . . . . . . . . . . Machines Sabotaged . | . . . . . . . . . . . . Overloaded Fab Kills . | . . . . . . . . . . . . Hacking | -11 -10 -10 -9 -9 -9 -8 -8 -7 -7 -7 -7 --------- Run | Jun Mat Min Mat Min Exi Min Mat Fac Gar Fac DSF Machines Accessed 61 | . 6 . 12 1 1 . 16 20 2 3 . Terminals 37 | . 5 . 10 . . . 9 9 2 2 . Fabricators 4 | . . . . . . . . 4 . . . Repair Stations 5 | . . . 1 . . . 2 2 . . . Recycling Units 5 | . 1 . . . . . 2 2 . . . Scanalyzers 6 | . . . 1 . . . 2 2 . 1 . Garrison Access 2 | . . . . . . . 1 1 . . . Total Hacks 210 | . 19 . 32 1 1 . 89 59 3 6 . Successful 139 | . 11 . 21 1 1 . 57 42 2 4 . Failed 69 | . 8 . 10 . . . 31 17 1 2 . Catastrophic 8 | . . . . . . . 6 2 . . . Database Lockouts 2 | . . . 1 . . . 1 . . . . Manual 79 | . 14 . 13 . 1 . 35 14 . 2 . Terminals 124 | . 18 . 26 . . . 41 33 3 3 . Fabricators 10 | . . . . . . . . 10 . . . Repair Stations 28 | . . . 4 . . . 20 4 . . . Recycling Units 9 | . 1 . . . . . 4 4 . . . Scanalyzers 34 | . . . 2 . . . 22 7 . 3 . Garrison Access 3 | . . . . . . . 2 1 . . . Terminal Hacks 51 | . 6 . 11 1 1 . 13 16 2 1 . Part Schematic 1 | . . . . . . . . 1 . . . Robot Schematic 3 | . . . . . . . . 3 . . . Robot Analysis 9 | . 2 . 1 . . . 5 1 . . . Prototype ID Bank 9 | . 2 . 1 . . . 2 4 . . . Open Door 2 | . . . . 1 . . . . 1 . . Open DSF 1 | . . . . . . . . . . 1 . Branch Access Points 3 | . . . 1 . . . 1 1 . . . Emergency Access Points 1 | . . . . . . . . . 1 . . Terminal Index 3 | . . . 1 . . . 1 1 . . . Scanalyzer Index 1 | . . . . . . . 1 . . . . Alert Level 3 | . . . 1 . . . 2 . . . . Unreport Threat 5 | . . . 1 . . . 1 3 . . . Locate Traps 7 | . 2 . 3 . . . . 2 . . . Zone Layout 2 | . . . 2 . . . . . . . . EX-Prototype ID Bank 1 | . . . . . 1 . . . . . . Fabricator Hacks 8 | . . . . . . . . 8 . . . Load Schematic 4 | . . . . . . . . 4 . . . Build 4 | . . . . . . . . 4 . . . Repair Station Hacks 24 | . . . 4 . . . 16 4 . . . Scan Component 13 | . . . 2 . . . 9 2 . . . Repair 11 | . . . 2 . . . 7 2 . . . Recycling Unit Hacks 8 | . 1 . . . . . 3 4 . . . Retrieve Matter 2 | . . . . . . . 1 1 . . . Retrieve Components 6 | . 1 . . . . . 2 3 . . . Scanalyzer 29 | . . . 2 . . . 18 6 . 3 . Insert Component 15 | . . . 1 . . . 10 2 . 2 . Analyze 14 | . . . 1 . . . 8 4 . 1 . Garrison Access Hacks 1 | . . . . . . . . 1 . . . Unlock Access 1 | . . . . . . . . 1 . . . Unauthorized Hacks 17 | . 3 . 4 . . . 7 3 . . . Terminals 15 | . 3 . 4 . . . 5 3 . . . Assimilate 4 | . 1 . . . . . 2 1 . . . Botnet 8 | . 2 . 3 . . . 2 1 . . . Operators 3 | . . . 1 . . . 1 1 . . . Fabricators . | . . . . . . . . . . . . Repair Stations . | . . . . . . . . . . . . Recycling Units . | . . . . . . . . . . . . Scanalyzers . | . . . . . . . . . . . . Garrison Access 2 | . . . . . . . 2 . . . . Reprogram 1 | . . . . . . . 1 . . . . Watchers 1 | . . . . . . . 1 . . . . Data Cores Recovered 1 | . . . . . . . . 1 . . . Used 1 | . . . . . . . . 1 . . . Hacking Detections 52 | . 5 . 10 . . . 15 18 1 3 . Full Trace Events 5 | . 1 . . . . . . 4 . . . Feedback Events . | . . . . . . . . . . . . Feedback Blocked . | . . . . . . . . . . . . Robot Schematics Acquired 3 | . . . . . . . . 3 . . . Robots Built 6 | . . . . . . . . 6 . . . Authchips . | . . . . . . . . . . . . Time 172 | . . . . . . . . 172 . . . Total Robot Build Rating 22 | . . . . . . . . 22 . . . Part Schematics Acquired 12 | . . . 1 . . . 7 3 . 1 . Parts Built 2 | . . . . . . . . 2 . . . Authchips . | . . . . . . . . . . . . Time 280 | . . . . . . . . 280 . . . Total Part Build Rating 14 | . . . . . . . . 14 . . . Parts Repaired 11 | . . . 2 . . . 7 2 . . . Time 687 | . . . 64 . . . 559 64 . . . Parts Recycled . | . . . . . . . . . . . . Recycled Matter . | . . . . . . . . . . . . Retrieved Matter 360 | . . . . . . . 360 . . . . Retrieved Components 24 | . 5 . . . . . 16 3 . . . Parts Scanalyzed 13 | . . . 1 . . . 9 2 . 1 . Part Schematics Acquired 11 | . . . 1 . . . 7 2 . 1 . Parts Damaged 2 | . . . . . . . . 2 . . . Bothacking | -11 -10 -10 -9 -9 -9 -8 -8 -7 -7 -7 -7 ------------ Run | Jun Mat Min Mat Min Exi Min Mat Fac Gar Fac DSF Used RIF Installer 1 | . . . . . . . . . 1 . . Robots Hacked 7 | . . . . . . . . . 5 . 2 Non-combat . | . . . . . . . . . . . . Combat 7 | . . . . . . . . . 5 . 2 Robot Hacks Applied 7 | . . . . . . . . . 5 . 2 wipe_record 1 | . . . . . . . . . 1 . . overwrite_iff 3 | . . . . . . . . . 1 . 2 formatsys_high 3 | . . . . . . . . . 3 . . Relay Couplers Released 29 | . . . . . . . . 4 25 . . Machine Destruction 25 | . . . . . . . . . 25 . . Programmers 4 | . . . . . . . . 4 . . . Attached 5 | . . . . . . . . . 3 . 2 Fabnet Peak Effective % . | . . . . . . . . . . . . Robots Rewired 21 | . . . . . . . . . 21 . . Allies Hacked 1 | . . . . . . . . 1 . . . Hacks Repelled . | . . . . . . . . . . . . Allies | -11 -10 -10 -9 -9 -9 -8 -8 -7 -7 -7 -7 -------- Run | Jun Mat Min Mat Min Exi Min Mat Fac Gar Fac DSF Total Allies 47 | . 1 4 . 1 . . 3 9 27 . 2 Largest Group 12 | . 1 3 3 3 . . 2 6 12 12 11 Highest-Rated Group 328 | . 10 40 40 55 . . 80 110 328 328 307 Highest-Rated Ally 80 | . 10 31 16 31 . . 40 31 80 80 80 Total Orders 8 | . . . 4 2 . . . 1 . . 1 STAY 4 | . . . 2 1 . . . 1 . . . ROAM 1 | . . . . . . . . . . . 1 FOLLOW 3 | . . . 2 1 . . . . . . . Ally Attacks 322 | . . 7 9 23 1 . 46 74 96 . 66 Total Damage 7777 | . . 83 86 239 70 . 1932 1017 2848 . 1502 Kills 61 | . . 2 1 6 . . 16 9 17 . 10 Allies Corrupted 2 | . . . . . . . . . 2 . . Allies Melted . | . . . . . . . . . . . . Turrets Deployed 3 | . . . . . 1 . 1 . 1 . . Intel | -11 -10 -10 -9 -9 -9 -8 -8 -7 -7 -7 -7 ------- Run | Jun Mat Min Mat Min Exi Min Mat Fac Gar Fac DSF Robot Analysis Total 9 | . 2 . 1 . . . 5 1 . . . Derelict Logs Recovered 2 | . . 1 . 1 . . . . . . . Drone Launches . | . . . . . . . . . . . . Drone Recoveries . | . . . . . . . . . . . . Exploration | -11 -10 -10 -9 -9 -9 -8 -8 -7 -7 -7 -7 ------------- Run | Jun Mat Min Mat Min Exi Min Mat Fac Gar Fac DSF Turns Passed 18856 | 334 1440 1106 1695 1596 1856 858 3276 3444 2863 151 237 Spaces Moved 9016 | 130 742 655 798 716 1006 446 1430 1699 1232 68 94 Core 10 | 10 . . . . . . . . . . . Treads 4981 | . 98 655 798 716 886 . 85 949 632 68 94 Legs 4025 | 120 644 . . . 120 446 1345 750 600 . . Wheels . | . . . . . . . . . . . . Hover . | . . . . . . . . . . . . Flight . | . . . . . . . . . . . . Fastest Speed 50 | 50 120 160 160 160 120 120 120 120 120 225 225 Average Speed 159 | 119 147 160 160 160 161 169 147 143 188 225 226 Slowest Speed 320 | 200 240 160 240 160 320 190 225 260 260 225 305 Overloaded Moves . | . . . . . . . . . . . . Propulsion Burnouts . | . . . . . . . . . . . . Robots Hopped . | . . . . . . . . . . . . Cave-ins Triggered . | . . . . . . . . . . . . Exploration Rate (%) 73 | 5 91 99 85 99 85 100 97 42 97 2 75 Regions Visited 11 Branch Regions 4 Pre-discovered Areas 1 | . . 1 . . . . . . . . . Known Exits Taken 3 | . . . 1 . . . . 1 . 1 . Unknown Exits Taken 7 | 1 1 1 . 1 1 1 1 . . . . Scrap Searched 4 | . . 3 . . . 1 . . . . . Spaces Dug 34 | . . . . . . . 34 . . . . Terrain Destroyed 296 | . . . 86 . . 3 83 21 103 . . Melee . | . . . . . . . . . . . . Projectile 27 | . . . . . . 2 13 5 7 . . AOE 266 | . . . 86 . . . 68 16 96 . . Terrain Rammed . | . . . . . . . . . . . . Walls Destroyed . | . . . . . . . . . . . . Machines Disabled . | . . . . . . . . . . . . Actions | -11 -10 -10 -9 -9 -9 -8 -8 -7 -7 -7 -7 --------- Run | Jun Mat Min Mat Min Exi Min Mat Fac Gar Fac DSF Total 12444 | 227 989 699 1078 1103 1170 507 2378 2488 1626 67 112 Wait 2288 | 36 135 29 184 350 51 11 783 604 105 . . Move 9005 | 129 741 654 797 715 1005 445 1429 1698 1231 67 94 Hop . | . . . . . . . . . . . . Pick Up 127 | 6 22 4 7 . 34 5 13 15 17 . 4 Fast Attach 51 | 5 3 . 6 1 5 2 14 11 4 . . Attach 46 | 2 4 . 4 2 12 3 4 5 10 . . Detach 8 | . 1 . . . 3 1 2 1 . . . Swap 83 | . 6 . 9 3 3 3 15 19 20 . 5 Drop 96 | . 13 4 9 1 24 3 14 18 9 . 1 Fire 592 | 49 56 8 58 25 33 29 96 116 117 . 5 Melee 18 | . . . . . . 4 6 . 8 . . Ram . | . . . . . . . . . . . . Kick 12 | . 8 . . . . 1 2 1 . . . Crush 10 | . . . 4 6 . . . . . . . Escape Stasis 30 | . . . . . . . . . 27 . 3 Rewire 78 | . . . . . . . . . 78 . . Trap . | . . . . . . . . . . . . Miscellaneous . | . . . . . . . . . . . . Route ------- -11/Junkyard -10/Materials (discovered 5 exits: *Mat x3 / [*Min x2]) -10/Mines (discovered 2 exits: *Mat x2) -9/Materials (discovered 5 exits: *Mat x2 / *Min x2 / *Sto) -9/Mines (discovered 4 exits: *Mat x2 / *Exi / [*Zio]) -9/Exiles -8/Mines (discovered 2 exits: *Mat x2) -8/Materials (discovered 3 exits: *Fac x3) -7/Factory (discovered 6 exits: [*Fac x3] / *Low x2 / Gar) -7/Garrison (discovered 3 exits: *Fac x3) -7/Factory -7/DSF (discovered 1 exit: [*Fac]) History --------- Turn | Location | Event 23 | -11/Junkyard | Discovered new exit (range 15) 335 | -11/Junkyard | Entered Materials 336 | -10/Materials | Build established: Mutant 475 | -10/Materials | Discovered new exit (range 12) 683 | -10/Materials | Discovered new exit (range 18) 1164 | -10/Materials | Discovered new exit (range 5) 1349 | -10/Materials | Discovered new exit (range 13) 1547 | -10/Materials | Discovered new exit (range 6) 1775 | -10/Materials | Entered Mines 1778 | -10/Mines | Received a Mining Laser from a helpful Derelict 1817 | -10/Mines | Met a Derelict bent on vengeance 1858 | -10/Mines | Received a Rocket Launcher from a helpful Derelict 1923 | -10/Mines | Discovered new exit (range 15) 2091 | -10/Mines | Discovered new exit (range 10) 2104 | -10/Mines | Joined a pair of Derelicts in attacking an 0b10 outpost 2394 | -10/Mines | Assisted by bots powering up and referring to "LRC-V3" 2689 | -10/Mines | Found a damaged Exp. Sensor Array with a note attached 2693 | -10/Mines | Found Prototype Device 2806 | -10/Mines | A weapon hastily lodged in a ceiling crevice suddenly fell to the ground 2881 | -10/Mines | Entered Materials 2881 | -9/Materials | Accompanied by 3 allies 2881 | -9/Materials | Evolved 2 slots: Utility x1, Weapon x1 3124 | -9/Materials | Central database locked down 3308 | -9/Materials | Identified exit to Mines 3308 | -9/Materials | Identified exit to Storage 3519 | -9/Materials | Build established: Gunner 3778 | -9/Materials | Discovered new exit (range 10) 3827 | -9/Materials | Repaired Imp. Treads 3860 | -9/Materials | Repaired Imp. Treads 4393 | -9/Materials | Discovered new exit (range 16) 4576 | -9/Materials | Entered Mines 4576 | -9/Mines | Accompanied by 3 allies 4653 | -9/Mines | Learned Materials emergency access door positions 4661 | -9/Mines | A Derelict revealed a hidden shortcut to a safe place 4692 | -9/Mines | Discovered new exit (range 12) 4723 | -9/Mines | Met a Derelict who couldn't figure out how to use a Trap Extractor 4979 | -9/Mines | Destroyed YI-UF0 5008 | -9/Mines | Escorted by a lone wolf Derelict 5099 | -9/Mines | Discovered new exit (range 12) 5496 | -9/Mines | Deemed a non-threat by the Exiles lab entrance 5496 | -9/Mines | Discovered new exit (range 5) 5527 | -9/Mines | Excavation squad dispatched 5527 | -9/Mines | A large section of the Mines collapsed 5777 | -9/Mines | Excavation squad dispatched 6172 | -9/Mines | Entered Exiles 6324 | -9/Exiles | Met 8R-AWN 6353 | -9/Exiles | Met EX-HEX 6412 | -9/Exiles | Met EX-DEC 6492 | -9/Exiles | Visited The Gauntlet 6718 | -9/Exiles | Met EX-BIN 6747 | -9/Exiles | Aligned with FarCom system 6749 | -9/Exiles | Given EX-Vault access code 6786 | -9/Exiles | Opened EX-Vault 6799 | -9/Exiles | Found Longsword +1 6803 | -9/Exiles | Found Deploy-a-Sentry 6805 | -9/Exiles | Found Deploy-a-Sentry 6808 | -9/Exiles | Found Deploy-a-Sentry 6843 | -9/Exiles | Warned to stay clear of 0b10 Research branches 7037 | -9/Exiles | Discovered new exit (range 14) 7646 | -9/Exiles | Attacked by the Exiles 7659 | -9/Exiles | DAS Turret deployed 7700 | -9/Exiles | Core integrity fell below 50% 7768 | -9/Exiles | Destroyed 8R-AWN 7773 | -9/Exiles | Found Prototype Device 7774 | -9/Exiles | Identified AS-neutralizer No. 17b 7777 | -9/Exiles | Found Prototype Ballistic Gun 7778 | -9/Exiles | Identified 8R-AWN's Boregun 7782 | -9/Exiles | Found 8R-AWN's Boregun 7789 | -9/Exiles | Found Prototype Protection 7797 | -9/Exiles | Lost 11 parts (2p2n3u4w) 7818 | -9/Exiles | Found Prototype Processor 7868 | -9/Exiles | Identified Exp. Sensor Array 8028 | -9/Exiles | Stole two prototypes: Longsword +1, Deploy-a-Sentry 8028 | -9/Exiles | Entered Mines 8072 | -8/Mines | Discovered new exit (range 5) 8078 | -8/Mines | Build established: Scavenger-Gunner 8113 | -8/Mines | CL-ANK came to Exiles' defense 8122 | -8/Mines | Core integrity fell below 20% 8192 | -8/Mines | Destroyed CL-ANK 8315 | -8/Mines | Discovered new exit (range 5) 8509 | -8/Mines | Build established: Scavenger-Mutant 8886 | -8/Mines | Entered Materials 8886 | -8/Materials | Evolved 2 slots: Propulsion x1, Utility x1 9287 | -8/Materials | Build established: Scavenger-Gunner 9473 | -8/Materials | Garrison activated, responded to threat 9566 | -8/Materials | DAS Turret deployed 9690 | -8/Materials | Central database locked down 9893 | -8/Materials | Garrison activated, responded to threat 10103 | -8/Materials | Discovered new exit (range 16) 10187 | -8/Materials | Repaired Hyb. Antimatter Reactor 10256 | -8/Materials | Repaired Adv. Weapon Cycler 10356 | -8/Materials | Repaired Adv. Myomer Leg 10457 | -8/Materials | Repaired Adv. Myomer Leg 10526 | -8/Materials | Repaired Biometal Medium Treads 10595 | -8/Materials | Repaired Biometal Medium Treads 10885 | -8/Materials | Repaired Broken Biometal Medium Treads 11112 | -8/Materials | Garrison activated, responded to threat 11132 | -8/Materials | Discovered new exit (range 11) 11421 | -8/Materials | Destroyed 8 combat bots 11460 | -8/Materials | Discovered new exit (range 8) 11464 | -8/Materials | Identified 8R-AWN's Armor/EX 11464 | -8/Materials | Identified Exp. Targeting Computer 12086 | -8/Materials | First assault squad dispatched 12162 | -8/Materials | Entered Factory 12162 | -7/Factory | Evolved 2 slots: Utility x2 12781 | -7/Factory | Build established: Hacker-Tank 12900 | -7/Factory | Repaired Biometal Medium Treads 13322 | -7/Factory | Identified exit to Lower Caves 13516 | -7/Factory | Fabricated Adv. Myomer Leg (x1) 13526 | -7/Factory | Build established: Hacker-Gunner 13730 | -7/Factory | Fabricated W-25 Informer (x2) 13798 | -7/Factory | Repaired Broken Hvy. Rocket Launcher 13913 | -7/Factory | Build established: Hacker-Tank 14001 | -7/Factory | P-60 Hacker assimilated allied Informer 4b 14391 | -7/Factory | Discovered new exit (range 15) 14448 | -7/Factory | Discovered new exit (range 9) 14566 | -7/Factory | Fabricated Adv. Myomer Leg (x1) 14614 | -7/Factory | Identified exit to Garrison 14661 | -7/Factory | Allied Derelicts emerged from ambush trap array 14667 | -7/Factory | Garrison activated, responded to threat 14853 | -7/Factory | Discovered new exit (range 14) 14864 | -7/Factory | Fabricated S-27 Virus? 15606 | -7/Factory | Entered Garrison 15729 | -7/Garrison | Triggered checkpoint 15744 | -7/Garrison | Core integrity fell below 50% 15793 | -7/Garrison | Destroyed 8 combat bots 15802 | -7/Garrison | Lost 3 parts (1p1u1w) 15839 | -7/Garrison | Installed Relay Interface Framework 16161 | -7/Garrison | Triggered checkpoint 16176 | -7/Garrison | Triggered checkpoint 16181 | -7/Garrison | Core integrity fell below 20% 16188 | -7/Garrison | Garrison Relay disabled 16217 | -7/Garrison | Lost 3 parts (1u2w) 16259 | -7/Garrison | Triggered checkpoint 16276 | -7/Garrison | Discovered new exit (range 10) 16380 | -7/Garrison | DAS Turret deployed 16439 | -7/Garrison | Triggered checkpoint 16528 | -7/Garrison | Triggered checkpoint 16698 | -7/Garrison | Discovered new exit (range 15) 16721 | -7/Garrison | Triggered checkpoint 16759 | -7/Garrison | Garrison Relay disabled 16905 | -7/Garrison | Triggered checkpoint 16997 | -7/Garrison | Triggered checkpoint 17069 | -7/Garrison | Triggered checkpoint 17084 | -7/Garrison | Triggered checkpoint 17101 | -7/Garrison | Discovered new exit (range 10) 17354 | -7/Garrison | Build established: Bothacker-Mutant 17726 | -7/Garrison | Triggered checkpoint 17766 | -7/Garrison | Build established: Commander-Mutant 17771 | -7/Garrison | Found embedded Infiltrators 17817 | -7/Garrison | Garrison Relay disabled 17990 | -7/Garrison | Garrison Relay disabled 18194 | -7/Garrison | Garrison Relay disabled 18469 | -7/Garrison | Entered Factory 18469 | -7/Factory | Accompanied by 12 allies 18602 | -7/Factory | Identified exit to DSF 18620 | -7/Factory | Entered DSF 18620 | -7/DSF | Accompanied by 11 allies 18649 | -7/DSF | Additional patrols routed to DSF 18726 | -7/DSF | Discovered new exit (range 15) 18744 | -7/DSF | Sterilization system engaged 18764 | -7/DSF | Ambient heat levels rising (+10) 18779 | -7/DSF | Ambient heat levels rising (+10) 18794 | -7/DSF | Ambient heat levels rising (+10) 18809 | -7/DSF | Ambient heat levels rising (+10) 18824 | -7/DSF | Ambient heat levels rising (+10) 18839 | -7/DSF | Ambient heat levels rising (+10) 18854 | -7/DSF | Ambient heat levels rising (+10) 18858 | -7/DSF | Core destroyed Last Messages --------------- 18838_ Overheating: Matter decay (-29). 18838_ A-02 Transporter heat damages core (-5). 18839_ ALERT: Ambient heat levels +10. 18842_ A-02 Transporter heat spikes uncontrollably. 18842_ A-02 Transporter heat damages Ion Engine. 18843_ A-02 Transporter heat damages Lgt. Treads, Weight Redist. System. 18844_ A-02 Transporter heat spikes uncontrollably. 18847_ Overheating: Matter decay (-37). 18848_ Power failure, Rnf. Deuterium Engine shutdown. 18849_ A-02 Transporter heat damages Lgt. Treads. 18851_ Overheating: System interference. 18851_ 8R-AWN's Boregun temporarily disabled. 18852_ Biometal Medium Treads broken. 18852_ Overheating: Short circuit. 18852_ A-02 Transporter heat damages core (-4). 18853_ A-02 Transporter heat damages core (-5). 18854_ Overheating: Matter decay (-52). 18854_ A-02 Transporter heat spikes uncontrollably. 18854_ ALERT: Ambient heat levels +10. 18858_ Overheating: Core damaged (-70). Map ----- +----------------------------------------------------+ | ???????## !#"######## !!########?# #?????? | | ???????# ]]#??????# !!#????????! !#????? | | ???????# ]]#??????# %= !!#????????! !#????? | | ???????## ###??????###*% ###???????## ##????? | | ???????#[ [[#????????! ??????????! !?????? | | ???????#[ [[#????????! ??????????! !?????? | | ???????#[ [[#???????!! ?????????! !?????? | | ??????### ########?### ##??###?#### ##????? | | ??????# #? #!!!###= ##?!!!# ## !?????? | | ??????# ## #!!!##=%% %##!!!" "? !?????? | | ??????# %[%!!! ??? !?????? | | ??????# [!%! ????? !?????? | | ??????# [%=%= =!= ????????????????? | | ??????# ## #!!!## #??????????????????? | | ??????# #? #??!#?# #???????????????????? | | ??????### ######???### ###?????????????????? | | ???????#] #??????# !!#?????????????????? | | ???????#]%= #??????# * !!#?????????????????? | | ???????#]%* #??????#!! !!#?????????????????? | | ???????## ###??????### ###?????????????????? | | ???????# ]]#??????# #?????????????????? | | ???????# ]]#??????# #?????????????????? | | ???????## =########## #?????????????????? | | ??????###[ ###[[#]]]### ###?????????????????? | | ?????##""* ##[[#]]]###xx ###!!!#?????????????? | | ????"""""% @*% ??????? | | ????"##""< ??????? | | ??????#"""""##]]# # ]]] #!!!#!!##"????????? | | ??????#"""""######### ]]] #?###?????????????? | | ??????####"##???????#########?????????????????? | | ?????????#"#??????????????????????????????????? | | ?????????""???????????????????????????????????? | | ??????????????????????????????????????????????? | | ??????????????????????????????????????????????? | | ??????????????????????????????????????????????? | | ??????????????????????????????????????????????? | | ??????????????????????????????????????????????? | | | | | | | | | | | | | | | | | | | | | | | | | | | +----------------------------------------------------+ Best States ------------- Heat Dissipation 54 Energy Generation 19 Energy Capacity 1100 Matter Stores 300 Matter Capacity 300 Sight Range 18 Terrain Scan Range 16 Terrain Scan Density 10 Additional Mass Support 12 Armor Coverage 450 Resistance: EM 20 Weapon Shielding 90 Weapon Cycling 25 Evasion (%) 55 Targeting Accuracy 12 Core Analysis 6 Recoil Reduction 3 Offensive Hacking 30 Defensive Hacking 20 Relay Coupler Types 3 Relay Coupler Value 58 Authchip Count 4 Item Schematics ----------------- Imp. Assault Rifle | -9/Materials | Scanalyzed Hyb. Antimatter Reactor | -8/Materials | Scanalyzed Biometal Medium Treads | -8/Materials | Scanalyzed Adv. Cooling System | -8/Materials | Scanalyzed System Shield | -8/Materials | Scanalyzed Adv. Weapon Cycler | -8/Materials | Scanalyzed Exp. Sensor Array | -8/Materials | Scanalyzed System Restoration Module | -8/Materials | Scanalyzed Adv. Sensor Array | -7/Factory | Hacked Adv. Myomer Leg | -7/Factory | Scanalyzed Hvy. Rocket Launcher | -7/Factory | Scanalyzed KE Penetrator | -7/Factory | Scanalyzed Robot Schematics ------------------ W-25 Informer | -7/Factory | Hacked S-27 Virus | -7/Factory | Hacked G-47 Trooper | -7/Factory | Hacked Fabricated ------------ Adv. Myomer Leg | x1 | -7/Factory W-25 Informer | x2 | -7/Factory Adv. Myomer Leg | x1 | -7/Factory S-27 Virus | x4 | -7/Factory Alien Tech Used ----------------- None Achievements -------------- Gun Specialist Challenges ------------ None Game ------ Seed ShrapnelBackupCharge Manual? 0 Play Time 02:59:53 Cumulative 60.9 hours Start 2023.09.02 @ 22:18:18 End 2023.09.03 @ 21:20:37 Sessions 5 Manual Loads 0 Difficulty Rogue Special Mode None Game No. 45 Rogue 45 Adventurer 0 Explorer 0 Win Type - Total 0 Types 0/0/0/0/0/0/0/0/0 Lore% 31 Gallery% 39 Achievement% 32 Wizard Run 0 Options --------- ASCII 0 Keyboard 0 Movement Mouse Keybinds 0 Fullscreen 1 Font 18/SmallcapsGlow Map View 76x50 Tactical HUD 1 Map Filters NONE Filters NONE Steam X RUN: 15eb6449-1a4a-441c-83a7-37f38a887808